Workbook

Sheet Input
C3: Form TD-21 | O3: NC Public School Transportation - Inventory Receipt Report | BZ3: Revised 09-12-19 csw
C5: Invoice Detail: | W5: Computation Detail | BR5: BSIP Detail | CM5: Functions
D7: Invoice # | O7: Date | X7: Tax | AG7: Freight | AP7: Addl Costs | AY7: Invoice Total | BH7: Distribute Freight | BS7: Purchase Order #
D9: 1530990865 | O9: 2019-03-26 | X9: 7.71 | AG9: 1 | AY9: 121.88 | BH9: by % of | BS9: 4500801832
BS11: Material Doc. #
BS13: 5005531931
BH15: Total Items | BS15: Posting Date:
D17: Vendor: | K17: Parts City | X17: =SUM(X9,X11,X13,X15) -> 7.71 | AG17: =SUM(AG9,AG11,AG13,AG15) -> 1 | AP17: =SUM(AP9,AP11,AP13,AP15) -> 0 | AY17: =SUM(AY9,AY11,AY13,AY15) -> 121.88 | BH17: =SUM(C21:H52) -> 7 | BS17: 2019-08-25
C20: Qty | I20: DOT Number | R20: Mfg. Part # | AE20: Description | BG20: Storage Bin Local | BQ20: Unit Price | CA20: Total
C21: 2 | I21: EEA022069 | R21: Wix 57182 | AE21: Oil Filter | BG21: Filter Bin A-1 | BQ21: 9.52
C22: 2 | I22: EEA044406 | R22: Wix 33630 | AE22: Fuel Filter | BG22: Filter Bin A-2 | BQ22: 24.96
C23: 1 | I23: EEA015953 | R23: Wix 57701 | AE23: Trans Filer | BG23: Filter Bin A-3 | BQ23: 14.01
C24: 1 | I24: EEA012607 | R24: Wix 57191 | AE24: P/S Filter | BG24: Filter Bin A-4 | BQ24: 15.29
C25: 1 | I25: EEA015300 | R25: Wix 33966 | AE25: Fuel Filter | BG25: Filter Bin A-5 | BQ25: 15.91

Sheet Processing (hidden)
B1: THIS FORM WILL BE THE SOURCE TO KEY INVENTORY RECEIPTS USING FUNCTION ME21N
E2: Assigned Freight and Other Costs [By %Cost] | F2: Assigned Freight and Other Costs [By %Quantity] | J2: Extra Penny Check
A3: Quantity | B3: Unit Price | C3: Total | D3: Assigned Taxes | G3: New Line Item Total | H3: Unit Price Check | I3: Total Check | J3: Added Fraction | K3: Round | L3: Final Line Item Price
A4: =IF(Input!C21=0,0,Input!C21) -> 2 | B4: =IF(Input!C21+Input!BQ21+Input!CA21>0,IF(Input!BQ21=0,Input!CA21/Input!C21,Input!BQ21),"") -> 9.52 | C4: =IF(Input!C21+Input!BQ21+Input!CA21>0,IF(Input!CA21=0,Input!BQ21*Input!C21,Input!CA21),"") -> 19.04 | D4: =IF(Input!C21=0,"",Input!$X$17*C4/SUM($C$4:$C$35)) -> 1.28578786 | E4: =IF($E$38<2,IF(Input!C21=0,"",(Input!$AG$17+Input!$AP$17)*(C4/SUM($C$4:$C$35))),"") -> 0.1667688535 | F4: =IF($E$38=2,IF(Input!C21=0,"",Input!$AG$17*A4/SUM($A$4:$A$35)),"") ->  | G4: =IF(Input!C21=0,"",SUM(C4:F4)) -> 20.49255671 | H4: =IF(Input!C21=0,"",ROUND(G4/A4,2)) -> 10.25 | I4: =IF(Input!C21=0,"",H4*A4) -> 20.5 | K4: =ROUND(J4,2) -> 0 | L4: =IF(Input!C21=0,"",(H4+K4)*A4) -> 20.5
A5: =IF(Input!C22=0,0,Input!C22) -> 2 | B5: =IF(Input!C22+Input!BQ22+Input!CA22>0,IF(Input!BQ22=0,Input!CA22/Input!C22,Input!BQ22),"") -> 24.96 | C5: =IF(Input!C22+Input!BQ22+Input!CA22>0,IF(Input!CA22=0,Input!BQ22*Input!C22,Input!CA22),"") -> 49.92 | D5: =IF(Input!C22=0,"",Input!$X$17*C5/SUM($C$4:$C$35)) -> 3.371141281 | E5: =IF($E$38<2,IF(Input!C22=0,"",(Input!$AG$17+Input!$AP$17)*(C5/SUM($C$4:$C$35))),"") -> 0.4372427082 | F5: =IF($E$38=2,IF(Input!C22=0,"",Input!$AG$17*A5/SUM($A$4:$A$35)),"") ->  | G5: =IF(Input!C22=0,"",SUM(C5:F5)) -> 53.72838399 | H5: =IF(Input!C22=0,"",ROUND(G5/A5,2)) -> 26.86 | I5: =IF(Input!C22=0,"",H5*A5) -> 53.72 | K5: =ROUND(J5,2) -> 0 | L5: =IF(Input!C22=0,"",(H5+K5)*A5) -> 53.72
A6: =IF(Input!C23=0,0,Input!C23) -> 1 | B6: =IF(Input!C23+Input!BQ23+Input!CA23>0,IF(Input!BQ23=0,Input!CA23/Input!C23,Input!BQ23),"") -> 14.01 | C6: =IF(Input!C23+Input!BQ23+Input!CA23>0,IF(Input!CA23=0,Input!BQ23*Input!C23,Input!CA23),"") -> 14.01 | D6: =IF(Input!C23=0,"",Input!$X$17*C6/SUM($C$4:$C$35)) -> 0.9461075589 | E6: =IF($E$38<2,IF(Input!C23=0,"",(Input!$AG$17+Input!$AP$17)*(C6/SUM($C$4:$C$35))),"") -> 0.1227117456 | F6: =IF($E$38=2,IF(Input!C23=0,"",Input!$AG$17*A6/SUM($A$4:$A$35)),"") ->  | G6: =IF(Input!C23=0,"",SUM(C6:F6)) -> 15.0788193 | H6: =IF(Input!C23=0,"",ROUND(G6/A6,2)) -> 15.08 | I6: =IF(Input!C23=0,"",H6*A6) -> 15.08 | K6: 0 | L6: =IF(Input!C23=0,"",(H6+K6)*A6) -> 15.08
A7: =IF(Input!C24=0,0,Input!C24) -> 1 | B7: =IF(Input!C24+Input!BQ24+Input!CA24>0,IF(Input!BQ24=0,Input!CA24/Input!C24,Input!BQ24),"") -> 15.29 | C7: =IF(Input!C24+Input!BQ24+Input!CA24>0,IF(Input!CA24=0,Input!BQ24*Input!C24,Input!CA24),"") -> 15.29 | D7: =IF(Input!C24=0,"",Input!$X$17*C7/SUM($C$4:$C$35)) -> 1.032547079 | E7: =IF($E$38<2,IF(Input!C24=0,"",(Input!$AG$17+Input!$AP$17)*(C7/SUM($C$4:$C$35))),"") -> 0.1339230971 | F7: =IF($E$38=2,IF(Input!C24=0,"",Input!$AG$17*A7/SUM($A$4:$A$35)),"") ->  | G7: =IF(Input!C24=0,"",SUM(C7:F7)) -> 16.45647018 | H7: =IF(Input!C24=0,"",ROUND(G7/A7,2)) -> 16.46 | I7: =IF(Input!C24=0,"",H7*A7) -> 16.46 | K7: 0 | L7: =IF(Input!C24=0,"",(H7+K7)*A7) -> 16.46
A8: =IF(Input!C25=0,0,Input!C25) -> 1 | B8: =IF(Input!C25+Input!BQ25+Input!CA25>0,IF(Input!BQ25=0,Input!CA25/Input!C25,Input!BQ25),"") -> 15.91 | C8: =IF(Input!C25+Input!BQ25+Input!CA25>0,IF(Input!CA25=0,Input!BQ25*Input!C25,Input!CA25),"") -> 15.91 | D8: =IF(Input!C25=0,"",Input!$X$17*C8/SUM($C$4:$C$35)) -> 1.074416221 | E8: =IF($E$38<2,IF(Input!C25=0,"",(Input!$AG$17+Input!$AP$17)*(C8/SUM($C$4:$C$35))),"") -> 0.1393535955 | F8: =IF($E$38=2,IF(Input!C25=0,"",Input!$AG$17*A8/SUM($A$4:$A$35)),"") ->  | G8: =IF(Input!C25=0,"",SUM(C8:F8)) -> 17.12376982 | H8: =IF(Input!C25=0,"",ROUND(G8/A8,2)) -> 17.12 | I8: =IF(Input!C25=0,"",H8*A8) -> 17.12 | K8: 0 | L8: =IF(Input!C25=0,"",(H8+K8)*A8) -> 17.12
A9: =IF(Input!C26=0,0,Input!C26) -> 0 | B9: =IF(Input!C26+Input!BQ26+Input!CA26>0,IF(Input!BQ26=0,Input!CA26/Input!C26,Input!BQ26),"") ->  | C9: =IF(Input!C26+Input!BQ26+Input!CA26>0,IF(Input!CA26=0,Input!BQ26*Input!C26,Input!CA26),"") ->  | D9: =IF(Input!C26=0,"",Input!$X$17*C9/SUM($C$4:$C$35)) ->  | E9: =IF($E$38<2,IF(Input!C26=0,"",(Input!$AG$17+Input!$AP$17)*(C9/SUM($C$4:$C$35))),"") ->  | F9: =IF($E$38=2,IF(Input!C26=0,"",Input!$AG$17*A9/SUM($A$4:$A$35)),"") ->  | G9: =IF(Input!C26=0,"",SUM(C9:F9)) ->  | H9: =IF(Input!C26=0,"",ROUND(G9/A9,2)) ->  | I9: =IF(Input!C26=0,"",H9*A9) ->  | K9: 0 | L9: =IF(Input!C26=0,"",(H9+K9)*A9) -> 
A10: =IF(Input!C27=0,0,Input!C27) -> 0 | B10: =IF(Input!C27+Input!BQ27+Input!CA27>0,IF(Input!BQ27=0,Input!CA27/Input!C27,Input!BQ27),"") ->  | C10: =IF(Input!C27+Input!BQ27+Input!CA27>0,IF(Input!CA27=0,Input!BQ27*Input!C27,Input!CA27),"") ->  | D10: =IF(Input!C27=0,"",Input!$X$17*C10/SUM($C$4:$C$35)) ->  | E10: =IF($E$38<2,IF(Input!C27=0,"",(Input!$AG$17+Input!$AP$17)*(C10/SUM($C$4:$C$35))),"") ->  | F10: =IF($E$38=2,IF(Input!C27=0,"",Input!$AG$17*A10/SUM($A$4:$A$35)),"") ->  | G10: =IF(Input!C27=0,"",SUM(C10:F10)) ->  | H10: =IF(Input!C27=0,"",ROUND(G10/A10,2)) ->  | I10: =IF(Input!C27=0,"",H10*A10) ->  | K10: 0 | L10: =IF(Input!C27=0,"",(H10+K10)*A10) -> 
A11: =IF(Input!C28=0,0,Input!C28) -> 0 | B11: =IF(Input!C28+Input!BQ28+Input!CA28>0,IF(Input!BQ28=0,Input!CA28/Input!C28,Input!BQ28),"") ->  | C11: =IF(Input!C28+Input!BQ28+Input!CA28>0,IF(Input!CA28=0,Input!BQ28*Input!C28,Input!CA28),"") ->  | D11: =IF(Input!C28=0,"",Input!$X$17*C11/SUM($C$4:$C$35)) ->  | E11: =IF($E$38<2,IF(Input!C28=0,"",(Input!$AG$17+Input!$AP$17)*(C11/SUM($C$4:$C$35))),"") ->  | F11: =IF($E$38=2,IF(Input!C28=0,"",Input!$AG$17*A11/SUM($A$4:$A$35)),"") ->  | G11: =IF(Input!C28=0,"",SUM(C11:F11)) ->  | H11: =IF(Input!C28=0,"",ROUND(G11/A11,2)) ->  | I11: =IF(Input!C28=0,"",H11*A11) ->  | K11: 0 | L11: =IF(Input!C28=0,"",(H11+K11)*A11) -> 
A12: =IF(Input!C29=0,0,Input!C29) -> 0 | B12: =IF(Input!C29+Input!BQ29+Input!CA29>0,IF(Input!BQ29=0,Input!CA29/Input!C29,Input!BQ29),"") ->  | C12: =IF(Input!C29+Input!BQ29+Input!CA29>0,IF(Input!CA29=0,Input!BQ29*Input!C29,Input!CA29),"") ->  | D12: =IF(Input!C29=0,"",Input!$X$17*C12/SUM($C$4:$C$35)) ->  | E12: =IF($E$38<2,IF(Input!C29=0,"",(Input!$AG$17+Input!$AP$17)*(C12/SUM($C$4:$C$35))),"") ->  | F12: =IF($E$38=2,IF(Input!C29=0,"",Input!$AG$17*A12/SUM($A$4:$A$35)),"") ->  | G12: =IF(Input!C29=0,"",SUM(C12:F12)) ->  | H12: =IF(Input!C29=0,"",ROUND(G12/A12,2)) ->  | I12: =IF(Input!C29=0,"",H12*A12) ->  | K12: 0 | L12: =IF(Input!C29=0,"",(H12+K12)*A12) -> 
A13: =IF(Input!C30=0,0,Input!C30) -> 0 | B13: =IF(Input!C30+Input!BQ30+Input!CA30>0,IF(Input!BQ30=0,Input!CA30/Input!C30,Input!BQ30),"") ->  | C13: =IF(Input!C30+Input!BQ30+Input!CA30>0,IF(Input!CA30=0,Input!BQ30*Input!C30,Input!CA30),"") ->  | D13: =IF(Input!C30=0,"",Input!$X$17*C13/SUM($C$4:$C$35)) ->  | E13: =IF($E$38<2,IF(Input!C30=0,"",(Input!$AG$17+Input!$AP$17)*(C13/SUM($C$4:$C$35))),"") ->  | F13: =IF($E$38=2,IF(Input!C30=0,"",Input!$AG$17*A13/SUM($A$4:$A$35)),"") ->  | G13: =IF(Input!C30=0,"",SUM(C13:F13)) ->  | H13: =IF(Input!C30=0,"",ROUND(G13/A13,2)) ->  | I13: =IF(Input!C30=0,"",H13*A13) ->  | K13: 0 | L13: =IF(Input!C30=0,"",(H13+K13)*A13) -> 
A14: =IF(Input!C31=0,0,Input!C31) -> 0 | B14: =IF(Input!C31+Input!BQ31+Input!CA31>0,IF(Input!BQ31=0,Input!CA31/Input!C31,Input!BQ31),"") ->  | C14: =IF(Input!C31+Input!BQ31+Input!CA31>0,IF(Input!CA31=0,Input!BQ31*Input!C31,Input!CA31),"") ->  | D14: =IF(Input!C31=0,"",Input!$X$17*C14/SUM($C$4:$C$35)) ->  | E14: =IF($E$38<2,IF(Input!C31=0,"",(Input!$AG$17+Input!$AP$17)*(C14/SUM($C$4:$C$35))),"") ->  | F14: =IF($E$38=2,IF(Input!C31=0,"",Input!$AG$17*A14/SUM($A$4:$A$35)),"") ->  | G14: =IF(Input!C31=0,"",SUM(C14:F14)) ->  | H14: =IF(Input!C31=0,"",ROUND(G14/A14,2)) ->  | I14: =IF(Input!C31=0,"",H14*A14) ->  | K14: 0 | L14: =IF(Input!C31=0,"",(H14+K14)*A14) -> 
A15: =IF(Input!C32=0,0,Input!C32) -> 0 | B15: =IF(Input!C32+Input!BQ32+Input!CA32>0,IF(Input!BQ32=0,Input!CA32/Input!C32,Input!BQ32),"") ->  | C15: =IF(Input!C32+Input!BQ32+Input!CA32>0,IF(Input!CA32=0,Input!BQ32*Input!C32,Input!CA32),"") ->  | D15: =IF(Input!C32=0,"",Input!$X$17*C15/SUM($C$4:$C$35)) ->  | E15: =IF($E$38<2,IF(Input!C32=0,"",(Input!$AG$17+Input!$AP$17)*(C15/SUM($C$4:$C$35))),"") ->  | F15: =IF($E$38=2,IF(Input!C32=0,"",Input!$AG$17*A15/SUM($A$4:$A$35)),"") ->  | G15: =IF(Input!C32=0,"",SUM(C15:F15)) ->  | H15: =IF(Input!C32=0,"",ROUND(G15/A15,2)) ->  | I15: =IF(Input!C32=0,"",H15*A15) ->  | K15: 0 | L15: =IF(Input!C32=0,"",(H15+K15)*A15) -> 
A16: =IF(Input!C33=0,0,Input!C33) -> 0 | B16: =IF(Input!C33+Input!BQ33+Input!CA33>0,IF(Input!BQ33=0,Input!CA33/Input!C33,Input!BQ33),"") ->  | C16: =IF(Input!C33+Input!BQ33+Input!CA33>0,IF(Input!CA33=0,Input!BQ33*Input!C33,Input!CA33),"") ->  | D16: =IF(Input!C33=0,"",Input!$X$17*C16/SUM($C$4:$C$35)) ->  | E16: =IF($E$38<2,IF(Input!C33=0,"",(Input!$AG$17+Input!$AP$17)*(C16/SUM($C$4:$C$35))),"") ->  | F16: =IF($E$38=2,IF(Input!C33=0,"",Input!$AG$17*A16/SUM($A$4:$A$35)),"") ->  | G16: =IF(Input!C33=0,"",SUM(C16:F16)) ->  | H16: =IF(Input!C33=0,"",ROUND(G16/A16,2)) ->  | I16: =IF(Input!C33=0,"",H16*A16) ->  | K16: 0 | L16: =IF(Input!C33=0,"",(H16+K16)*A16) -> 
A17: =IF(Input!C34=0,0,Input!C34) -> 0 | B17: =IF(Input!C34+Input!BQ34+Input!CA34>0,IF(Input!BQ34=0,Input!CA34/Input!C34,Input!BQ34),"") ->  | C17: =IF(Input!C34+Input!BQ34+Input!CA34>0,IF(Input!CA34=0,Input!BQ34*Input!C34,Input!CA34),"") ->  | D17: =IF(Input!C34=0,"",Input!$X$17*C17/SUM($C$4:$C$35)) ->  | E17: =IF($E$38<2,IF(Input!C34=0,"",(Input!$AG$17+Input!$AP$17)*(C17/SUM($C$4:$C$35))),"") ->  | F17: =IF($E$38=2,IF(Input!C34=0,"",Input!$AG$17*A17/SUM($A$4:$A$35)),"") ->  | G17: =IF(Input!C34=0,"",SUM(C17:F17)) ->  | H17: =IF(Input!C34=0,"",ROUND(G17/A17,2)) ->  | I17: =IF(Input!C34=0,"",H17*A17) ->  | K17: 0 | L17: =IF(Input!C34=0,"",(H17+K17)*A17) -> 
A18: =IF(Input!C35=0,0,Input!C35) -> 0 | B18: =IF(Input!C35+Input!BQ35+Input!CA35>0,IF(Input!BQ35=0,Input!CA35/Input!C35,Input!BQ35),"") ->  | C18: =IF(Input!C35+Input!BQ35+Input!CA35>0,IF(Input!CA35=0,Input!BQ35*Input!C35,Input!CA35),"") ->  | D18: =IF(Input!C35=0,"",Input!$X$17*C18/SUM($C$4:$C$35)) ->  | E18: =IF($E$38<2,IF(Input!C35=0,"",(Input!$AG$17+Input!$AP$17)*(C18/SUM($C$4:$C$35))),"") ->  | F18: =IF($E$38=2,IF(Input!C35=0,"",Input!$AG$17*A18/SUM($A$4:$A$35)),"") ->  | G18: =IF(Input!C35=0,"",SUM(C18:F18)) ->  | H18: =IF(Input!C35=0,"",ROUND(G18/A18,2)) ->  | I18: =IF(Input!C35=0,"",H18*A18) ->  | K18: 0 | L18: =IF(Input!C35=0,"",(H18+K18)*A18) -> 
A19: =IF(Input!C36=0,0,Input!C36) -> 0 | B19: =IF(Input!C36+Input!BQ36+Input!CA36>0,IF(Input!BQ36=0,Input!CA36/Input!C36,Input!BQ36),"") ->  | C19: =IF(Input!C36+Input!BQ36+Input!CA36>0,IF(Input!CA36=0,Input!BQ36*Input!C36,Input!CA36),"") ->  | D19: =IF(Input!C36=0,"",Input!$X$17*C19/SUM($C$4:$C$35)) ->  | E19: =IF($E$38<2,IF(Input!C36=0,"",(Input!$AG$17+Input!$AP$17)*(C19/SUM($C$4:$C$35))),"") ->  | F19: =IF($E$38=2,IF(Input!C36=0,"",Input!$AG$17*A19/SUM($A$4:$A$35)),"") ->  | G19: =IF(Input!C36=0,"",SUM(C19:F19)) ->  | H19: =IF(Input!C36=0,"",ROUND(G19/A19,2)) ->  | I19: =IF(Input!C36=0,"",H19*A19) ->  | K19: 0 | L19: =IF(Input!C36=0,"",(H19+K19)*A19) -> 
A20: =IF(Input!C37=0,0,Input!C37) -> 0 | B20: =IF(Input!C37+Input!BQ37+Input!CA37>0,IF(Input!BQ37=0,Input!CA37/Input!C37,Input!BQ37),"") ->  | C20: =IF(Input!C37+Input!BQ37+Input!CA37>0,IF(Input!CA37=0,Input!BQ37*Input!C37,Input!CA37),"") ->  | D20: =IF(Input!C37=0,"",Input!$X$17*C20/SUM($C$4:$C$35)) ->  | E20: =IF($E$38<2,IF(Input!C37=0,"",(Input!$AG$17+Input!$AP$17)*(C20/SUM($C$4:$C$35))),"") ->  | F20: =IF($E$38=2,IF(Input!C37=0,"",Input!$AG$17*A20/SUM($A$4:$A$35)),"") ->  | G20: =IF(Input!C37=0,"",SUM(C20:F20)) ->  | H20: =IF(Input!C37=0,"",ROUND(G20/A20,2)) ->  | I20: =IF(Input!C37=0,"",H20*A20) ->  | K20: 0 | L20: =IF(Input!C37=0,"",(H20+K20)*A20) -> 
A21: =IF(Input!C38=0,0,Input!C38) -> 0 | B21: =IF(Input!C38+Input!BQ38+Input!CA38>0,IF(Input!BQ38=0,Input!CA38/Input!C38,Input!BQ38),"") ->  | C21: =IF(Input!C38+Input!BQ38+Input!CA38>0,IF(Input!CA38=0,Input!BQ38*Input!C38,Input!CA38),"") ->  | D21: =IF(Input!C38=0,"",Input!$X$17*C21/SUM($C$4:$C$35)) ->  | E21: =IF($E$38<2,IF(Input!C38=0,"",(Input!$AG$17+Input!$AP$17)*(C21/SUM($C$4:$C$35))),"") ->  | F21: =IF($E$38=2,IF(Input!C38=0,"",Input!$AG$17*A21/SUM($A$4:$A$35)),"") ->  | G21: =IF(Input!C38=0,"",SUM(C21:F21)) ->  | H21: =IF(Input!C38=0,"",ROUND(G21/A21,2)) ->  | I21: =IF(Input!C38=0,"",H21*A21) ->  | K21: 0 | L21: =IF(Input!C38=0,"",(H21+K21)*A21) -> 
A22: =IF(Input!C39=0,0,Input!C39) -> 0 | B22: =IF(Input!C39+Input!BQ39+Input!CA39>0,IF(Input!BQ39=0,Input!CA39/Input!C39,Input!BQ39),"") ->  | C22: =IF(Input!C39+Input!BQ39+Input!CA39>0,IF(Input!CA39=0,Input!BQ39*Input!C39,Input!CA39),"") ->  | D22: =IF(Input!C39=0,"",Input!$X$17*C22/SUM($C$4:$C$35)) ->  | E22: =IF($E$38<2,IF(Input!C39=0,"",(Input!$AG$17+Input!$AP$17)*(C22/SUM($C$4:$C$35))),"") ->  | F22: =IF($E$38=2,IF(Input!C39=0,"",Input!$AG$17*A22/SUM($A$4:$A$35)),"") ->  | G22: =IF(Input!C39=0,"",SUM(C22:F22)) ->  | H22: =IF(Input!C39=0,"",ROUND(G22/A22,2)) ->  | I22: =IF(Input!C39=0,"",H22*A22) ->  | K22: 0 | L22: =IF(Input!C39=0,"",(H22+K22)*A22) -> 
A23: =IF(Input!C40=0,0,Input!C40) -> 0 | B23: =IF(Input!C40+Input!BQ40+Input!CA40>0,IF(Input!BQ40=0,Input!CA40/Input!C40,Input!BQ40),"") ->  | C23: =IF(Input!C40+Input!BQ40+Input!CA40>0,IF(Input!CA40=0,Input!BQ40*Input!C40,Input!CA40),"") ->  | D23: =IF(Input!C40=0,"",Input!$X$17*C23/SUM($C$4:$C$35)) ->  | E23: =IF($E$38<2,IF(Input!C40=0,"",(Input!$AG$17+Input!$AP$17)*(C23/SUM($C$4:$C$35))),"") ->  | F23: =IF($E$38=2,IF(Input!C40=0,"",Input!$AG$17*A23/SUM($A$4:$A$35)),"") ->  | G23: =IF(Input!C40=0,"",SUM(C23:F23)) ->  | H23: =IF(Input!C40=0,"",ROUND(G23/A23,2)) ->  | I23: =IF(Input!C40=0,"",H23*A23) ->  | K23: 0 | L23: =IF(Input!C40=0,"",(H23+K23)*A23) -> 
A24: =IF(Input!C41=0,0,Input!C41) -> 0 | B24: =IF(Input!C41+Input!BQ41+Input!CA41>0,IF(Input!BQ41=0,Input!CA41/Input!C41,Input!BQ41),"") ->  | C24: =IF(Input!C41+Input!BQ41+Input!CA41>0,IF(Input!CA41=0,Input!BQ41*Input!C41,Input!CA41),"") ->  | D24: =IF(Input!C41=0,"",Input!$X$17*C24/SUM($C$4:$C$35)) ->  | E24: =IF($E$38<2,IF(Input!C41=0,"",(Input!$AG$17+Input!$AP$17)*(C24/SUM($C$4:$C$35))),"") ->  | F24: =IF($E$38=2,IF(Input!C41=0,"",Input!$AG$17*A24/SUM($A$4:$A$35)),"") ->  | G24: =IF(Input!C41=0,"",SUM(C24:F24)) ->  | H24: =IF(Input!C41=0,"",ROUND(G24/A24,2)) ->  | I24: =IF(Input!C41=0,"",H24*A24) ->  | K24: 0 | L24: =IF(Input!C41=0,"",(H24+K24)*A24) -> 
A25: =IF(Input!C42=0,0,Input!C42) -> 0 | B25: =IF(Input!C42+Input!BQ42+Input!CA42>0,IF(Input!BQ42=0,Input!CA42/Input!C42,Input!BQ42),"") ->  | C25: =IF(Input!C42+Input!BQ42+Input!CA42>0,IF(Input!CA42=0,Input!BQ42*Input!C42,Input!CA42),"") ->  | D25: =IF(Input!C42=0,"",Input!$X$17*C25/SUM($C$4:$C$35)) ->  | E25: =IF($E$38<2,IF(Input!C42=0,"",(Input!$AG$17+Input!$AP$17)*(C25/SUM($C$4:$C$35))),"") ->  | F25: =IF($E$38=2,IF(Input!C42=0,"",Input!$AG$17*A25/SUM($A$4:$A$35)),"") ->  | G25: =IF(Input!C42=0,"",SUM(C25:F25)) ->  | H25: =IF(Input!C42=0,"",ROUND(G25/A25,2)) ->  | I25: =IF(Input!C42=0,"",H25*A25) ->  | K25: 0 | L25: =IF(Input!C42=0,"",(H25+K25)*A25) -> 
A26: =IF(Input!C43=0,0,Input!C43) -> 0 | B26: =IF(Input!C43+Input!BQ43+Input!CA43>0,IF(Input!BQ43=0,Input!CA43/Input!C43,Input!BQ43),"") ->  | C26: =IF(Input!C43+Input!BQ43+Input!CA43>0,IF(Input!CA43=0,Input!BQ43*Input!C43,Input!CA43),"") ->  | D26: =IF(Input!C43=0,"",Input!$X$17*C26/SUM($C$4:$C$35)) ->  | E26: =IF($E$38<2,IF(Input!C43=0,"",(Input!$AG$17+Input!$AP$17)*(C26/SUM($C$4:$C$35))),"") ->  | F26: =IF($E$38=2,IF(Input!C43=0,"",Input!$AG$17*A26/SUM($A$4:$A$35)),"") ->  | G26: =IF(Input!C43=0,"",SUM(C26:F26)) ->  | H26: =IF(Input!C43=0,"",ROUND(G26/A26,2)) ->  | I26: =IF(Input!C43=0,"",H26*A26) ->  | K26: 0 | L26: =IF(Input!C43=0,"",(H26+K26)*A26) -> 
A27: =IF(Input!C44=0,0,Input!C44) -> 0 | B27: =IF(Input!C44+Input!BQ44+Input!CA44>0,IF(Input!BQ44=0,Input!CA44/Input!C44,Input!BQ44),"") ->  | C27: =IF(Input!C44+Input!BQ44+Input!CA44>0,IF(Input!CA44=0,Input!BQ44*Input!C44,Input!CA44),"") ->  | D27: =IF(Input!C44=0,"",Input!$X$17*C27/SUM($C$4:$C$35)) ->  | E27: =IF($E$38<2,IF(Input!C44=0,"",(Input!$AG$17+Input!$AP$17)*(C27/SUM($C$4:$C$35))),"") ->  | F27: =IF($E$38=2,IF(Input!C44=0,"",Input!$AG$17*A27/SUM($A$4:$A$35)),"") ->  | G27: =IF(Input!C44=0,"",SUM(C27:F27)) ->  | H27: =IF(Input!C44=0,"",ROUND(G27/A27,2)) ->  | I27: =IF(Input!C44=0,"",H27*A27) ->  | K27: 0 | L27: =IF(Input!C44=0,"",(H27+K27)*A27) -> 
A28: =IF(Input!C45=0,0,Input!C45) -> 0 | B28: =IF(Input!C45+Input!BQ45+Input!CA45>0,IF(Input!BQ45=0,Input!CA45/Input!C45,Input!BQ45),"") ->  | C28: =IF(Input!C45+Input!BQ45+Input!CA45>0,IF(Input!CA45=0,Input!BQ45*Input!C45,Input!CA45),"") ->  | D28: =IF(Input!C45=0,"",Input!$X$17*C28/SUM($C$4:$C$35)) ->  | E28: =IF($E$38<2,IF(Input!C45=0,"",(Input!$AG$17+Input!$AP$17)*(C28/SUM($C$4:$C$35))),"") ->  | F28: =IF($E$38=2,IF(Input!C45=0,"",Input!$AG$17*A28/SUM($A$4:$A$35)),"") ->  | G28: =IF(Input!C45=0,"",SUM(C28:F28)) ->  | H28: =IF(Input!C45=0,"",ROUND(G28/A28,2)) ->  | I28: =IF(Input!C45=0,"",H28*A28) ->  | K28: 0 | L28: =IF(Input!C45=0,"",(H28+K28)*A28) -> 
A29: =IF(Input!C46=0,0,Input!C46) -> 0 | B29: =IF(Input!C46+Input!BQ46+Input!CA46>0,IF(Input!BQ46=0,Input!CA46/Input!C46,Input!BQ46),"") ->  | C29: =IF(Input!C46+Input!BQ46+Input!CA46>0,IF(Input!CA46=0,Input!BQ46*Input!C46,Input!CA46),"") ->  | D29: =IF(Input!C46=0,"",Input!$X$17*C29/SUM($C$4:$C$35)) ->  | E29: =IF($E$38<2,IF(Input!C46=0,"",(Input!$AG$17+Input!$AP$17)*(C29/SUM($C$4:$C$35))),"") ->  | F29: =IF($E$38=2,IF(Input!C46=0,"",Input!$AG$17*A29/SUM($A$4:$A$35)),"") ->  | G29: =IF(Input!C46=0,"",SUM(C29:F29)) ->  | H29: =IF(Input!C46=0,"",ROUND(G29/A29,2)) ->  | I29: =IF(Input!C46=0,"",H29*A29) ->  | K29: 0 | L29: =IF(Input!C46=0,"",(H29+K29)*A29) -> 
A30: =IF(Input!C47=0,0,Input!C47) -> 0 | B30: =IF(Input!C47+Input!BQ47+Input!CA47>0,IF(Input!BQ47=0,Input!CA47/Input!C47,Input!BQ47),"") ->  | C30: =IF(Input!C47+Input!BQ47+Input!CA47>0,IF(Input!CA47=0,Input!BQ47*Input!C47,Input!CA47),"") ->  | D30: =IF(Input!C47=0,"",Input!$X$17*C30/SUM($C$4:$C$35)) ->  | E30: =IF($E$38<2,IF(Input!C47=0,"",(Input!$AG$17+Input!$AP$17)*(C30/SUM($C$4:$C$35))),"") ->  | F30: =IF($E$38=2,IF(Input!C47=0,"",Input!$AG$17*A30/SUM($A$4:$A$35)),"") ->  | G30: =IF(Input!C47=0,"",SUM(C30:F30)) ->  | H30: =IF(Input!C47=0,"",ROUND(G30/A30,2)) ->  | I30: =IF(Input!C47=0,"",H30*A30) ->  | K30: 0 | L30: =IF(Input!C47=0,"",(H30+K30)*A30) -> 
A31: =IF(Input!C48=0,0,Input!C48) -> 0 | B31: =IF(Input!C48+Input!BQ48+Input!CA48>0,IF(Input!BQ48=0,Input!CA48/Input!C48,Input!BQ48),"") ->  | C31: =IF(Input!C48+Input!BQ48+Input!CA48>0,IF(Input!CA48=0,Input!BQ48*Input!C48,Input!CA48),"") ->  | D31: =IF(Input!C48=0,"",Input!$X$17*C31/SUM($C$4:$C$35)) ->  | E31: =IF($E$38<2,IF(Input!C48=0,"",(Input!$AG$17+Input!$AP$17)*(C31/SUM($C$4:$C$35))),"") ->  | F31: =IF($E$38=2,IF(Input!C48=0,"",Input!$AG$17*A31/SUM($A$4:$A$35)),"") ->  | G31: =IF(Input!C48=0,"",SUM(C31:F31)) ->  | H31: =IF(Input!C48=0,"",ROUND(G31/A31,2)) ->  | I31: =IF(Input!C48=0,"",H31*A31) ->  | K31: 0 | L31: =IF(Input!C48=0,"",(H31+K31)*A31) -> 
A32: =IF(Input!C49=0,0,Input!C49) -> 0 | B32: =IF(Input!C49+Input!BQ49+Input!CA49>0,IF(Input!BQ49=0,Input!CA49/Input!C49,Input!BQ49),"") ->  | C32: =IF(Input!C49+Input!BQ49+Input!CA49>0,IF(Input!CA49=0,Input!BQ49*Input!C49,Input!CA49),"") ->  | D32: =IF(Input!C49=0,"",Input!$X$17*C32/SUM($C$4:$C$35)) ->  | E32: =IF($E$38<2,IF(Input!C49=0,"",(Input!$AG$17+Input!$AP$17)*(C32/SUM($C$4:$C$35))),"") ->  | F32: =IF($E$38=2,IF(Input!C49=0,"",Input!$AG$17*A32/SUM($A$4:$A$35)),"") ->  | G32: =IF(Input!C49=0,"",SUM(C32:F32)) ->  | H32: =IF(Input!C49=0,"",ROUND(G32/A32,2)) ->  | I32: =IF(Input!C49=0,"",H32*A32) ->  | K32: 0 | L32: =IF(Input!C49=0,"",(H32+K32)*A32) -> 
A33: =IF(Input!C50=0,0,Input!C50) -> 0 | B33: =IF(Input!C50+Input!BQ50+Input!CA50>0,IF(Input!BQ50=0,Input!CA50/Input!C50,Input!BQ50),"") ->  | C33: =IF(Input!C50+Input!BQ50+Input!CA50>0,IF(Input!CA50=0,Input!BQ50*Input!C50,Input!CA50),"") ->  | D33: =IF(Input!C50=0,"",Input!$X$17*C33/SUM($C$4:$C$35)) ->  | E33: =IF($E$38<2,IF(Input!C50=0,"",(Input!$AG$17+Input!$AP$17)*(C33/SUM($C$4:$C$35))),"") ->  | F33: =IF($E$38=2,IF(Input!C50=0,"",Input!$AG$17*A33/SUM($A$4:$A$35)),"") ->  | G33: =IF(Input!C50=0,"",SUM(C33:F33)) ->  | H33: =IF(Input!C50=0,"",ROUND(G33/A33,2)) ->  | I33: =IF(Input!C50=0,"",H33*A33) ->  | K33: 0 | L33: =IF(Input!C50=0,"",(H33+K33)*A33) -> 
A34: =IF(Input!C51=0,0,Input!C51) -> 0 | B34: =IF(Input!C51+Input!BQ51+Input!CA51>0,IF(Input!BQ51=0,Input!CA51/Input!C51,Input!BQ51),"") ->  | C34: =IF(Input!C51+Input!BQ51+Input!CA51>0,IF(Input!CA51=0,Input!BQ51*Input!C51,Input!CA51),"") ->  | D34: =IF(Input!C51=0,"",Input!$X$17*C34/SUM($C$4:$C$35)) ->  | E34: =IF($E$38<2,IF(Input!C51=0,"",(Input!$AG$17+Input!$AP$17)*(C34/SUM($C$4:$C$35))),"") ->  | F34: =IF($E$38=2,IF(Input!C51=0,"",Input!$AG$17*A34/SUM($A$4:$A$35)),"") ->  | G34: =IF(Input!C51=0,"",SUM(C34:F34)) ->  | H34: =IF(Input!C51=0,"",ROUND(G34/A34,2)) ->  | I34: =IF(Input!C51=0,"",H34*A34) ->  | K34: 0 | L34: =IF(Input!C51=0,"",(H34+K34)*A34) -> 
A35: =IF(Input!C52=0,0,Input!C52) -> 0 | B35: =IF(Input!C52+Input!BQ52+Input!CA52>0,IF(Input!BQ52=0,Input!CA52/Input!C52,Input!BQ52),"") ->  | C35: =IF(Input!C52+Input!BQ52+Input!CA52>0,IF(Input!CA52=0,Input!BQ52*Input!C52,Input!CA52),"") ->  | D35: =IF(Input!C52=0,"",Input!$X$17*C35/SUM($C$4:$C$35)) ->  | E35: =IF($E$38<2,IF(Input!C52=0,"",(Input!$AG$17+Input!$AP$17)*(C35/SUM($C$4:$C$35))),"") ->  | F35: =IF($E$38=2,IF(Input!C52=0,"",Input!$AG$17*A35/SUM($A$4:$A$35)),"") ->  | G35: =IF(Input!C52=0,"",SUM(C35:F35)) ->  | H35: =IF(Input!C52=0,"",ROUND(G35/A35,2)) ->  | I35: =IF(Input!C52=0,"",H35*A35) ->  | K35: 0 | L35: =IF(Input!C52=0,"",(H35+K35)*A35) -> 
A36: =SUM(A4:A35) -> 7 | C36: =SUM(C4:C35) -> 114.17 | D36: 7.71 | E36: 1 | F36: 0 | G36: =SUM(G4:G35) -> 122.88 | I36: 122.88 | J36: =SUM(J4:J35) -> 0 | L36: =SUM(L4:L35) -> 122.88
E37: Freight and Other Cost Assignments
E38: 1

Sheet Output
C3: Form TD-21 | O3: NC Public School Transportation - Inventory Receipt Report | CA3: Revised 09-12-19 csw
C5: Invoice Detail: | W5: Computation Detail | BR5: BSIP Detail | CL5: Functions
AX6: FALSE
D7: Invoice # | O7: Date | X7: Tax | AG7: Freight | AP7: Addl Costs | AY7: Invoice Total | BH7: Freight & Addl | BS7: Purchase Order #
D9: =IF(Input!D9<>"",Input!D9,"") -> 1530990865 | O9: =IF(Input!O9<>"",Input!O9,"") -> 2019-03-26 | X9: =IF(Input!X9>0,Input!X9,"") -> 7.71 | AG9: =IF(Input!AG9>0,Input!AG9,"") -> 1 | AP9: =IF(Input!AP9>0,Input!AP9,"") ->  | AY9: =IF(Input!AY9>0,Input!AY9,"") -> 121.88 | BH9: Cost Distributed | BS9: 4500801832
D11: =IF(Input!D11<>"",Input!D11,"") ->  | O11: =IF(Input!O11<>"",Input!O11,"") ->  | X11: =IF(Input!X11>0,Input!X11,"") ->  | AG11: =IF(Input!AG11>0,Input!AG11,"") ->  | AP11: =IF(Input!AP11>0,Input!AP11,"") ->  | AY11: =IF(Input!AY11>0,Input!AY11,"") ->  | BH11: by % of | BS11: Material Doc. #
D13: =IF(Input!D13<>"",Input!D13,"") ->  | O13: =IF(Input!O13<>"",Input!O13,"") ->  | X13: =IF(Input!X13>0,Input!X13,"") ->  | AG13: =IF(Input!AG13>0,Input!AG13,"") ->  | AP13: =IF(Input!AP13>0,Input!AP13,"") ->  | AY13: =IF(Input!AY13>0,Input!AY13,"") ->  | BH13: =IF(Processing!E38=2,"Quantity","Total Cost") -> Total Cost | BS13: 5005531931
BH14: Computed Total
D15: =IF(Input!D15<>"",Input!D15,"") ->  | O15: =IF(Input!O15<>"",Input!O15,"") ->  | X15: =IF(Input!X15>0,Input!X15,"") ->  | AG15: =IF(Input!AG15>0,Input!AG15,"") ->  | AP15: =IF(Input!AP15>0,Input!AP15,"") ->  | AY15: =IF(Input!AY15>0,Input!AY15,"") ->  | BS15: Posting Date: | CN15: =TRIM(K17) & " " & TEXT(BS17,"mm-dd-yy") -> Parts City 08-25-19
CN16: ME21N Contents
D17: Vendor: | K17: =IF(Input!K17<>"",Input!K17,"") -> Parts City | X17: =Input!X17 -> 7.71 | AG17: =Input!AG17 -> 1 | AP17: =Input!AP17 -> 0 | AY17: =Input!AY17 -> 121.88 | BH17: =SUM(Processing!L36) -> 122.88 | BS17: 2019-08-25 | CT17: DPI Use Information being copied
C20: Qty | I20: DOT Number | R20: Mfg. Part # | AE20: Description | BG20: Storage Bin Local | BQ20: Unit Price | CA20: Total | CN20: Non-Stock Part Do Not Copy | CO20: Qty | CP20: DOT Number | CQ20: Unit of Measure | CR20: Unit Price
C21: =IF(Input!C21=0,"",Input!C21) -> 2 | I21: =IF(Input!I21=0,"",Input!I21) -> EEA022069 | R21: =IF(Input!R21=0,"",Input!R21) -> Wix 57182 | AE21: =IF(Input!AE21="","",Input!AE21) -> Oil Filter | BG21: =IF(Input!BG21="","",Input!BG21) -> Filter Bin A-1 | BQ21: =IF(Input!C21=0,"",Processing!H4+Processing!J4) -> 10.25 | CA21: =IF(Input!C21=0,"",C21*BQ21) -> 20.5 | CO21: =C21 -> 2 | CP21: =I21 -> EEA022069 | CR21: =BQ21 -> 10.25 | CT21: FALSE | CV21: 2 | CW21: EEA022069 | CY21: 10.16
C22: =IF(Input!C22=0,"",Input!C22) -> 2 | I22: =IF(Input!I22=0,"",Input!I22) -> EEA044406 | R22: =IF(Input!R22=0,"",Input!R22) -> Wix 33630 | AE22: =IF(Input!AE22="","",Input!AE22) -> Fuel Filter | BG22: =IF(Input!BG22="","",Input!BG22) -> Filter Bin A-2 | BQ22: =IF(Input!C22=0,"",Processing!H5+Processing!J5) -> 26.86 | CA22: =IF(Input!C22=0,"",C22*BQ22) -> 53.72 | CO22: =C22 -> 2 | CP22: =I22 -> EEA044406 | CR22: =BQ22 -> 26.86 | CT22: FALSE | CV22: 2 | CW22: EEA044406 | CY22: 26.65
C23: =IF(Input!C23=0,"",Input!C23) -> 1 | I23: =IF(Input!I23=0,"",Input!I23) -> EEA015953 | R23: =IF(Input!R23=0,"",Input!R23) -> Wix 57701 | AE23: =IF(Input!AE23="","",Input!AE23) -> Trans Filer | BG23: =IF(Input!BG23="","",Input!BG23) -> Filter Bin A-3 | BQ23: =IF(Input!C23=0,"",Processing!H6+Processing!J6) -> 15.08 | CA23: =IF(Input!C23=0,"",C23*BQ23) -> 15.08 | CO23: 1 | CP23: EEA015953 | CR23: 15.08 | CT23: FALSE | CV23: 1 | CW23: EEA015953 | CY23: 14.96
C24: =IF(Input!C24=0,"",Input!C24) -> 1 | I24: =IF(Input!I24=0,"",Input!I24) -> EEA012607 | R24: =IF(Input!R24=0,"",Input!R24) -> Wix 57191 | AE24: =IF(Input!AE24="","",Input!AE24) -> P/S Filter | BG24: =IF(Input!BG24="","",Input!BG24) -> Filter Bin A-4 | BQ24: =IF(Input!C24=0,"",Processing!H7+Processing!J7) -> 16.46 | CA24: =IF(Input!C24=0,"",C24*BQ24) -> 16.46 | CO24: 1 | CP24: EEA012607 | CR24: 16.46 | CT24: FALSE | CV24: 1 | CW24: EEA012607 | CY24: 16.32
C25: =IF(Input!C25=0,"",Input!C25) -> 1 | I25: =IF(Input!I25=0,"",Input!I25) -> EEA015300 | R25: =IF(Input!R25=0,"",Input!R25) -> Wix 33966 | AE25: =IF(Input!AE25="","",Input!AE25) -> Fuel Filter | BG25: =IF(Input!BG25="","",Input!BG25) -> Filter Bin A-5 | BQ25: =IF(Input!C25=0,"",Processing!H8+Processing!J8) -> 17.12 | CA25: =IF(Input!C25=0,"",C25*BQ25) -> 17.12 | CO25: 1 | CP25: EEA015300 | CR25: 17.12 | CT25: FALSE | CV25: 1 | CW25: EEA015300 | CY25: 16.98
C26: =IF(Input!C26=0,"",Input!C26) ->  | I26: =IF(Input!I26=0,"",Input!I26) ->  | R26: =IF(Input!R26=0,"",Input!R26) ->  | AE26: =IF(Input!AE26="","",Input!AE26) ->  | BG26: =IF(Input!BG26="","",Input!BG26) ->  | BQ26: =IF(Input!C26=0,"",Processing!H9+Processing!J9) ->  | CA26: =IF(Input!C26=0,"",C26*BQ26) ->  | CT26: FALSE
C27: =IF(Input!C27=0,"",Input!C27) ->  | I27: =IF(Input!I27=0,"",Input!I27) ->  | R27: =IF(Input!R27=0,"",Input!R27) ->  | AE27: =IF(Input!AE27="","",Input!AE27) ->  | BG27: =IF(Input!BG27="","",Input!BG27) ->  | BQ27: =IF(Input!C27=0,"",Processing!H10+Processing!J10) ->  | CA27: =IF(Input!C27=0,"",C27*BQ27) ->  | CT27: FALSE
C28: =IF(Input!C28=0,"",Input!C28) ->  | I28: =IF(Input!I28=0,"",Input!I28) ->  | R28: =IF(Input!R28=0,"",Input!R28) ->  | AE28: =IF(Input!AE28="","",Input!AE28) ->  | BG28: =IF(Input!BG28="","",Input!BG28) ->  | BQ28: =IF(Input!C28=0,"",Processing!H11+Processing!J11) ->  | CA28: =IF(Input!C28=0,"",C28*BQ28) ->  | CT28: FALSE
C29: =IF(Input!C29=0,"",Input!C29) ->  | I29: =IF(Input!I29=0,"",Input!I29) ->  | R29: =IF(Input!R29=0,"",Input!R29) ->  | AE29: =IF(Input!AE29="","",Input!AE29) ->  | BG29: =IF(Input!BG29="","",Input!BG29) ->  | BQ29: =IF(Input!C29=0,"",Processing!H12+Processing!J12) ->  | CA29: =IF(Input!C29=0,"",C29*BQ29) ->  | CT29: FALSE
C30: =IF(Input!C30=0,"",Input!C30) ->  | I30: =IF(Input!I30=0,"",Input!I30) ->  | R30: =IF(Input!R30=0,"",Input!R30) ->  | AE30: =IF(Input!AE30="","",Input!AE30) ->  | BG30: =IF(Input!BG30="","",Input!BG30) ->  | BQ30: =IF(Input!C30=0,"",Processing!H13+Processing!J13) ->  | CA30: =IF(Input!C30=0,"",C30*BQ30) ->  | CT30: FALSE
C31: =IF(Input!C31=0,"",Input!C31) ->  | I31: =IF(Input!I31=0,"",Input!I31) ->  | R31: =IF(Input!R31=0,"",Input!R31) ->  | AE31: =IF(Input!AE31="","",Input!AE31) ->  | BG31: =IF(Input!BG31="","",Input!BG31) ->  | BQ31: =IF(Input!C31=0,"",Processing!H14+Processing!J14) ->  | CA31: =IF(Input!C31=0,"",C31*BQ31) ->  | CT31: FALSE
C32: =IF(Input!C32=0,"",Input!C32) ->  | I32: =IF(Input!I32=0,"",Input!I32) ->  | R32: =IF(Input!R32=0,"",Input!R32) ->  | AE32: =IF(Input!AE32="","",Input!AE32) ->  | BG32: =IF(Input!BG32="","",Input!BG32) ->  | BQ32: =IF(Input!C32=0,"",Processing!H15+Processing!J15) ->  | CA32: =IF(Input!C32=0,"",C32*BQ32) ->  | CT32: FALSE
C33: =IF(Input!C33=0,"",Input!C33) ->  | I33: =IF(Input!I33=0,"",Input!I33) ->  | R33: =IF(Input!R33=0,"",Input!R33) ->  | AE33: =IF(Input!AE33="","",Input!AE33) ->  | BG33: =IF(Input!BG33="","",Input!BG33) ->  | BQ33: =IF(Input!C33=0,"",Processing!H16+Processing!J16) ->  | CA33: =IF(Input!C33=0,"",C33*BQ33) ->  | CT33: FALSE
C34: =IF(Input!C34=0,"",Input!C34) ->  | I34: =IF(Input!I34=0,"",Input!I34) ->  | R34: =IF(Input!R34=0,"",Input!R34) ->  | AE34: =IF(Input!AE34="","",Input!AE34) ->  | BG34: =IF(Input!BG34="","",Input!BG34) ->  | BQ34: =IF(Input!C34=0,"",Processing!H17+Processing!J17) ->  | CA34: =IF(Input!C34=0,"",C34*BQ34) ->  | CT34: FALSE
C35: =IF(Input!C35=0,"",Input!C35) ->  | I35: =IF(Input!I35=0,"",Input!I35) ->  | R35: =IF(Input!R35=0,"",Input!R35) ->  | AE35: =IF(Input!AE35="","",Input!AE35) ->  | BG35: =IF(Input!BG35="","",Input!BG35) ->  | BQ35: =IF(Input!C35=0,"",Processing!H18+Processing!J18) ->  | CA35: =IF(Input!C35=0,"",C35*BQ35) ->  | CT35: FALSE
C36: =IF(Input!C36=0,"",Input!C36) ->  | I36: =IF(Input!I36=0,"",Input!I36) ->  | R36: =IF(Input!R36=0,"",Input!R36) ->  | AE36: =IF(Input!AE36="","",Input!AE36) ->  | BG36: =IF(Input!BG36="","",Input!BG36) ->  | BQ36: =IF(Input!C36=0,"",Processing!H19+Processing!J19) ->  | CA36: =IF(Input!C36=0,"",C36*BQ36) ->  | CT36: FALSE
C37: =IF(Input!C37=0,"",Input!C37) ->  | I37: =IF(Input!I37=0,"",Input!I37) ->  | R37: =IF(Input!R37=0,"",Input!R37) ->  | AE37: =IF(Input!AE37="","",Input!AE37) ->  | BG37: =IF(Input!BG37="","",Input!BG37) ->  | BQ37: =IF(Input!C37=0,"",Processing!H20+Processing!J20) ->  | CA37: =IF(Input!C37=0,"",C37*BQ37) ->  | CT37: FALSE
C38: =IF(Input!C38=0,"",Input!C38) ->  | I38: =IF(Input!I38=0,"",Input!I38) ->  | R38: =IF(Input!R38=0,"",Input!R38) ->  | AE38: =IF(Input!AE38="","",Input!AE38) ->  | BG38: =IF(Input!BG38="","",Input!BG38) ->  | BQ38: =IF(Input!C38=0,"",Processing!H21+Processing!J21) ->  | CA38: =IF(Input!C38=0,"",C38*BQ38) ->  | CT38: FALSE
C39: =IF(Input!C39=0,"",Input!C39) ->  | I39: =IF(Input!I39=0,"",Input!I39) ->  | R39: =IF(Input!R39=0,"",Input!R39) ->  | AE39: =IF(Input!AE39="","",Input!AE39) ->  | BG39: =IF(Input!BG39="","",Input!BG39) ->  | BQ39: =IF(Input!C39=0,"",Processing!H22+Processing!J22) ->  | CA39: =IF(Input!C39=0,"",C39*BQ39) ->  | CT39: FALSE
C40: =IF(Input!C40=0,"",Input!C40) ->  | I40: =IF(Input!I40=0,"",Input!I40) ->  | R40: =IF(Input!R40=0,"",Input!R40) ->  | AE40: =IF(Input!AE40="","",Input!AE40) ->  | BG40: =IF(Input!BG40="","",Input!BG40) ->  | BQ40: =IF(Input!C40=0,"",Processing!H23+Processing!J23) ->  | CA40: =IF(Input!C40=0,"",C40*BQ40) ->  | CT40: FALSE
C41: =IF(Input!C41=0,"",Input!C41) ->  | I41: =IF(Input!I41=0,"",Input!I41) ->  | R41: =IF(Input!R41=0,"",Input!R41) ->  | AE41: =IF(Input!AE41="","",Input!AE41) ->  | BG41: =IF(Input!BG41="","",Input!BG41) ->  | BQ41: =IF(Input!C41=0,"",Processing!H24+Processing!J24) ->  | CA41: =IF(Input!C41=0,"",C41*BQ41) ->  | CT41: FALSE
C42: =IF(Input!C42=0,"",Input!C42) ->  | I42: =IF(Input!I42=0,"",Input!I42) ->  | R42: =IF(Input!R42=0,"",Input!R42) ->  | AE42: =IF(Input!AE42="","",Input!AE42) ->  | BG42: =IF(Input!BG42="","",Input!BG42) ->  | BQ42: =IF(Input!C42=0,"",Processing!H25+Processing!J25) ->  | CA42: =IF(Input!C42=0,"",C42*BQ42) ->  | CT42: FALSE
C43: =IF(Input!C43=0,"",Input!C43) ->  | I43: =IF(Input!I43=0,"",Input!I43) ->  | R43: =IF(Input!R43=0,"",Input!R43) ->  | AE43: =IF(Input!AE43="","",Input!AE43) ->  | BG43: =IF(Input!BG43="","",Input!BG43) ->  | BQ43: =IF(Input!C43=0,"",Processing!H26+Processing!J26) ->  | CA43: =IF(Input!C43=0,"",C43*BQ43) ->  | CT43: FALSE
C44: =IF(Input!C44=0,"",Input!C44) ->  | I44: =IF(Input!I44=0,"",Input!I44) ->  | R44: =IF(Input!R44=0,"",Input!R44) ->  | AE44: =IF(Input!AE44="","",Input!AE44) ->  | BG44: =IF(Input!BG44="","",Input!BG44) ->  | BQ44: =IF(Input!C44=0,"",Processing!H27+Processing!J27) ->  | CA44: =IF(Input!C44=0,"",C44*BQ44) ->  | CT44: FALSE
C45: =IF(Input!C45=0,"",Input!C45) ->  | I45: =IF(Input!I45=0,"",Input!I45) ->  | R45: =IF(Input!R45=0,"",Input!R45) ->  | AE45: =IF(Input!AE45="","",Input!AE45) ->  | BG45: =IF(Input!BG45="","",Input!BG45) ->  | BQ45: =IF(Input!C45=0,"",Processing!H28+Processing!J28) ->  | CA45: =IF(Input!C45=0,"",C45*BQ45) ->  | CT45: FALSE
C46: =IF(Input!C46=0,"",Input!C46) ->  | I46: =IF(Input!I46=0,"",Input!I46) ->  | R46: =IF(Input!R46=0,"",Input!R46) ->  | AE46: =IF(Input!AE46="","",Input!AE46) ->  | BG46: =IF(Input!BG46="","",Input!BG46) ->  | BQ46: =IF(Input!C46=0,"",Processing!H29+Processing!J29) ->  | CA46: =IF(Input!C46=0,"",C46*BQ46) ->  | CT46: FALSE
C47: =IF(Input!C47=0,"",Input!C47) ->  | I47: =IF(Input!I47=0,"",Input!I47) ->  | R47: =IF(Input!R47=0,"",Input!R47) ->  | AE47: =IF(Input!AE47="","",Input!AE47) ->  | BG47: =IF(Input!BG47="","",Input!BG47) ->  | BQ47: =IF(Input!C47=0,"",Processing!H30+Processing!J30) ->  | CA47: =IF(Input!C47=0,"",C47*BQ47) ->  | CT47: FALSE
C48: =IF(Input!C48=0,"",Input!C48) ->  | I48: =IF(Input!I48=0,"",Input!I48) ->  | R48: =IF(Input!R48=0,"",Input!R48) ->  | AE48: =IF(Input!AE48="","",Input!AE48) ->  | BG48: =IF(Input!BG48="","",Input!BG48) ->  | BQ48: =IF(Input!C48=0,"",Processing!H31+Processing!J31) ->  | CA48: =IF(Input!C48=0,"",C48*BQ48) ->  | CT48: FALSE
C49: =IF(Input!C49=0,"",Input!C49) ->  | I49: =IF(Input!I49=0,"",Input!I49) ->  | R49: =IF(Input!R49=0,"",Input!R49) ->  | AE49: =IF(Input!AE49="","",Input!AE49) ->  | BG49: =IF(Input!BG49="","",Input!BG49) ->  | BQ49: =IF(Input!C49=0,"",Processing!H32+Processing!J32) ->  | CA49: =IF(Input!C49=0,"",C49*BQ49) ->  | CT49: FALSE
C50: =IF(Input!C50=0,"",Input!C50) ->  | I50: =IF(Input!I50=0,"",Input!I50) ->  | R50: =IF(Input!R50=0,"",Input!R50) ->  | AE50: =IF(Input!AE50="","",Input!AE50) ->  | BG50: =IF(Input!BG50="","",Input!BG50) ->  | BQ50: =IF(Input!C50=0,"",Processing!H33+Processing!J33) ->  | CA50: =IF(Input!C50=0,"",C50*BQ50) ->  | CT50: FALSE
C51: =IF(Input!C51=0,"",Input!C51) ->  | I51: =IF(Input!I51=0,"",Input!I51) ->  | R51: =IF(Input!R51=0,"",Input!R51) ->  | AE51: =IF(Input!AE51="","",Input!AE51) ->  | BG51: =IF(Input!BG51="","",Input!BG51) ->  | BQ51: =IF(Input!C51=0,"",Processing!H34+Processing!J34) ->  | CA51: =IF(Input!C51=0,"",C51*BQ51) ->  | CT51: FALSE
C52: =IF(Input!C52=0,"",Input!C52) ->  | I52: =IF(Input!I52=0,"",Input!I52) ->  | R52: =IF(Input!R52=0,"",Input!R52) ->  | AE52: =IF(Input!AE52="","",Input!AE52) ->  | BG52: =IF(Input!BG52="","",Input!BG52) ->  | BQ52: =IF(Input!C52=0,"",Processing!H35+Processing!J35) ->  | CA52: =IF(Input!C52=0,"",C52*BQ52) ->  | CT52: FALSE
AE54: Summary: | CN54: =IF(CA70<>"",IF(CA61-CA70>0,CQ59&DOLLAR(CA70,2),CQ60&DOLLAR(CA70,2)),"") -> Total of Computed Invoice exceeds the Total of invoices keyed by a variance of: $1.00
BG55: Items: | CA55: =SUM(Processing!A36) -> 7
BG58: Sub-Total: | CA58: =SUM(Processing!C36) -> 114.17
BG59: Taxes: | CA59: =SUM(Processing!D36) -> 7.71 | CN59: =IF(CA70<>"","Steps to Correct Variance:","") -> Steps to Correct Variance: | CQ59: Total of Computed Invoice exceeds the Total of invoices keyed by a variance of:
BG60: Freight & Additional Costs: | CA60: =SUM(Processing!E36) -> 1 | CN60: =IF(CA70<>"","1. Return to Input Worksheet","") -> 1. Return to Input Worksheet | CQ60: Total of Invoice(s) Input exceeds the Total of Computed Invoice(s) by a variance of:
BG61: Computed Invoice Total: | CA61: =SUM(Processing!L36) -> 122.88 | CN61: =IF(CA70<>"","2. Review Invoice total(s) input","") -> 2. Review Invoice total(s) input | CQ61: \
CN62: =IF(CA70<>"","3. Review Quantities input","") -> 3. Review Quantities input
CN63: =IF(CA70<>"","4. Change invalid entries","") -> 4. Change invalid entries
BG64: Keyed Invoice Total #1: | CA64: =Input!AY9 -> 121.88 | CN64: =IF(CA70<>"","5. Click <Submit> to recompute","") -> 5. Click <Submit> to recompute
BG65: Keyed Invoice Total #2: | CA65: =Input!AY11 -> 0 | CN65: =IF(CA70<>"","6. Re-review output","") -> 6. Re-review output
BG66: Keyed Invoice Total #3: | CA66: =Input!AY13 -> 0
BG67: Keyed Invoice Total #4: | CA67: =Input!AY15 -> 0 | CN67: =IF(CA70<>"","How to correct - Single line invoice","") -> How to correct - Single line invoice
BG68: Total: | CA68: =Input!AY17 -> 121.88 | CN68: =IF(CA70<>"","1. Split transaction based upon variance.","") -> 1. Split transaction based upon variance.
BG70: =IF(CA70<>"","Variance:","") -> Variance: | CA70: =IF(ROUND(SUM(CA61-CA68),2)<>0,SUM(CA61-CA68),"") -> 1
CN71: =IF(CA70<>"","Example","") -> Example
CN72: =IF(CA70<>"","Variance of:","") -> Variance of: | CP72: =IF(CA70<>"","$1.27","") -> $1.27
CN73: =IF(CA70<>"","Original Unit Price:","") -> Original Unit Price: | CP73: =IF(CA70<>"","$3.83","") -> $3.83
CN74: =IF(CA70<>"","Quanity:","") -> Quanity: | CP74: =IF(CA70<>"","800","") -> 800
CP76: =IF(CA70<>"","Qty","") -> Qty | CQ76: =IF(CA70<>"","Unit Price","") -> Unit Price
CN77: =IF(CA70<>"","Original - 1 Transaction:","") -> Original - 1 Transaction: | CP77: =IF(CA70<>"","800","") -> 800 | CQ77: =IF(CA70<>"","3.83","") -> 3.83
CN79: =IF(CA70<>"","New - 2 Transactions:","") -> New - 2 Transactions: | CP79: =IF(CA70<>"","673","") -> 673 | CQ79: =IF(CA70<>"","3.83","") -> 3.83
CP80: =IF(CA70<>"","127","") -> 127 | CQ80: =IF(CA70<>"","3.82","") -> 3.82
